[Event "Late-Titled-Tuesday-Blitz-September-12-2023"]
[Site "Chess.com"]
[Date "2023.09.12"]
[Round "8"]
[White "BogdanDeac"]
[Black "MagnusCarlsen"]
[Result "0-1"]
[WhiteElo "2980"]
[BlackElo "3227"]
[TimeControl "180+1"]
[EndTime "15:23:20 PDT"]
[Termination "MagnusCarlsen won by resignation"]

1. d4 {[%clk 0:03:00.9]} 1... d5 {[%clk 0:02:52]} 2. c4 {[%clk 0:03:01.4]} 2...
e6 {[%clk 0:02:52.7]} 3. Nf3 {[%clk 0:03:01.7]} 3... c6 {[%clk 0:02:52.1]} 4.
Nbd2 {[%clk 0:02:55.8]} 4... Nf6 {[%clk 0:02:52]} 5. g3 {[%clk 0:02:55.9]} 5...
c5 {[%clk 0:02:52.7]} 6. cxd5 {[%clk 0:02:54.2]} 6... exd5 {[%clk 0:02:52.9]} 7.
Bg2 {[%clk 0:02:54.5]} 7... Nc6 {[%clk 0:02:53.1]} 8. O-O {[%clk 0:02:54.3]}
8... h6 {[%clk 0:02:46.8]} 9. Re1 {[%clk 0:02:27.7]} 9... cxd4 {[%clk
0:02:45.8]} 10. Nb3 {[%clk 0:02:26.8]} 10... Bd6 {[%clk 0:02:34]} 11. Nbxd4
{[%clk 0:02:21.3]} 11... O-O {[%clk 0:02:34.7]} 12. b3 {[%clk 0:02:21]} 12...
Re8 {[%clk 0:02:28.9]} 13. Bb2 {[%clk 0:02:20.9]} 13... Bb4 {[%clk 0:02:29.6]}
14. Rf1 {[%clk 0:02:18.8]} 14... Nxd4 {[%clk 0:02:27.9]} 15. Qxd4 {[%clk
0:01:58.1]} 15... Ba5 {[%clk 0:02:13.6]} 16. Qd3 {[%clk 0:01:52.3]} 16... Bb6
{[%clk 0:02:09.7]} 17. Rad1 {[%clk 0:01:47.5]} 17... Be6 {[%clk 0:02:07.9]} 18.
Nd4 {[%clk 0:01:34.2]} 18... Bg4 {[%clk 0:02:07.9]} 19. Rfe1 {[%clk 0:00:57.9]}
19... Rc8 {[%clk 0:02:06.5]} 20. h3 {[%clk 0:00:55.8]} 20... Bh5 {[%clk
0:02:05.2]} 21. g4 {[%clk 0:00:39.1]} 21... Bg6 {[%clk 0:02:03.8]} 22. Nf5
{[%clk 0:00:39.6]} 22... h5 {[%clk 0:01:48.8]} 23. Bf3 {[%clk 0:00:08.8]} 23...
hxg4 {[%clk 0:01:49]} 24. hxg4 {[%clk 0:00:09.7]} 24... Ne4 {[%clk 0:01:47.2]}
25. Bxe4 {[%clk 0:00:09.2]} 25... Rxe4 {[%clk 0:01:48.1]} 26. Qxe4 {[%clk
0:00:08.2]} 26... dxe4 {[%clk 0:01:49]} 27. Rxd8+ {[%clk 0:00:08]} 27... Rxd8
{[%clk 0:01:49.9]} 28. Bc3 {[%clk 0:00:05.3]} 28... Bxf5 {[%clk 0:01:47.5]} 29.
gxf5 {[%clk 0:00:05.6]} 29... Rd5 {[%clk 0:01:48.2]} 30. f6 {[%clk 0:00:06]}
30... g5 {[%clk 0:01:42.3]} 31. e3 {[%clk 0:00:05.4]} 31... Kh7 {[%clk
0:01:41.9]} 32. b4 {[%clk 0:00:05.3]} 32... Kg6 {[%clk 0:01:41.1]} 33. Rc1
{[%clk 0:00:05.9]} 33... a6 {[%clk 0:01:34.8]} 34. a4 {[%clk 0:00:05.9]} 34...
Bc7 {[%clk 0:01:35.2]} 35. Kg2 {[%clk 0:00:05.6]} 35... Bd6 {[%clk 0:01:35.2]}
36. Bd4 {[%clk 0:00:03.9]} 36... Bxb4 {[%clk 0:01:33]} 37. Rc7 {[%clk 0:00:04]}
37... b5 {[%clk 0:01:32.4]} 38. axb5 {[%clk 0:00:04]} 38... axb5 {[%clk
0:01:31.8]} 39. Rb7 {[%clk 0:00:03.9]} 39... Bf8 {[%clk 0:01:16.1]} 40. f3
{[%clk 0:00:03.3]} 40... exf3+ {[%clk 0:01:13.2]} 41. Kxf3 {[%clk 0:00:04.2]}
41... b4 {[%clk 0:01:13.2]} 42. Kg4 {[%clk 0:00:03.5]} 42... Bc5 {[%clk
0:00:45.7]} 43. Bxc5 {[%clk 0:00:02.8]} 43... Rxc5 {[%clk 0:00:46]} 44. Rxb4
{[%clk 0:00:03.5]} 44... Re5 {[%clk 0:00:45.8]} 45. e4 {[%clk 0:00:03.2]} 45...
Kxf6 {[%clk 0:00:44.4]} 46. Rb6+ {[%clk 0:00:03.8]} 46... Re6 {[%clk 0:00:44.1]}
47. Rb4 {[%clk 0:00:04.1]} 47... Kg6 {[%clk 0:00:44.8]} 48. Rc4 {[%clk
0:00:04.2]} 48... Rxe4+ {[%clk 0:00:44.4]} 49. Rxe4 {[%clk 0:00:03.9]} 49... f5+
{[%clk 0:00:45.3]} 0-1

[Event "Late-Titled-Tuesday-Blitz-September-12-2023"]
[Site "Chess.com"]
[Date "2023.09.12"]
[Round "8"]
[White "zverr1"]
[Black "RaphaeI"]
[Result "1-0"]
[WhiteElo "2506"]
[BlackElo "2594"]
[TimeControl "180+1"]
[EndTime "15:23:20 PDT"]
[Termination "zverr1 won by checkmate"]

1. d4 {[%clk 0:03:00.9]} 1... d5 {[%clk 0:02:53.2]} 2. c4 {[%clk 0:03:01.3]}
2... e6 {[%clk 0:02:53.1]} 3. Nf3 {[%clk 0:03:01.9]} 3... Nf6 {[%clk 0:02:53.4]}
4. g3 {[%clk 0:03:02.3]} 4... dxc4 {[%clk 0:02:51.8]} 5. Bg2 {[%clk 0:03:02.6]}
5... c6 {[%clk 0:02:52.3]} 6. O-O {[%clk 0:03:01.2]} 6... b5 {[%clk 0:02:52.5]}
7. Ne5 {[%clk 0:03:00.8]} 7... Bb7 {[%clk 0:02:52.4]} 8. a4 {[%clk 0:03:01.4]}
8... a6 {[%clk 0:02:40.2]} 9. b3 {[%clk 0:03:01.8]} 9... cxb3 {[%clk 0:02:38.8]}
10. Qxb3 {[%clk 0:03:02.7]} 10... Qxd4 {[%clk 0:02:39]} 11. Bb2 {[%clk
0:03:03.3]} 11... Qb4 {[%clk 0:02:38.4]} 12. Qc2 {[%clk 0:03:03.6]} 12... Qc5
{[%clk 0:02:27.9]} 13. Qd3 {[%clk 0:03:03.5]} 13... Nd5 {[%clk 0:02:27.8]} 14.
Nd2 {[%clk 0:02:45.3]} 14... f6 {[%clk 0:02:17]} 15. Ng4 {[%clk 0:02:29.3]}
15... Be7 {[%clk 0:02:09.3]} 16. e4 {[%clk 0:02:16.1]} 16... Nb4 {[%clk
0:01:58.1]} 17. Qb3 {[%clk 0:02:15.1]} 17... Qc2 {[%clk 0:01:58.3]} 18. Qxe6
{[%clk 0:01:25.9]} 18... Qxb2 {[%clk 0:01:57.8]} 19. e5 {[%clk 0:01:22.9]} 19...
Qxd2 {[%clk 0:00:49.5]} 20. Rfd1 {[%clk 0:01:20.2]} 20... Qg5 {[%clk 0:00:36.4]}
21. axb5 {[%clk 0:01:00.3]} 21... f5 {[%clk 0:00:23.7]} 22. bxc6 {[%clk
0:00:51.6]} 22... N4xc6 {[%clk 0:00:17.5]} 23. Bxc6+ {[%clk 0:00:44.8]} 23...
Nxc6 {[%clk 0:00:14.5]} 24. Qd7+ {[%clk 0:00:45]} 24... Kf7 {[%clk 0:00:13.3]}
25. Qxb7 {[%clk 0:00:40.6]} 25... fxg4 {[%clk 0:00:09.2]} 26. e6+ {[%clk
0:00:34.5]} 26... Kg6 {[%clk 0:00:07.2]} 27. Qxc6 {[%clk 0:00:32.5]} 27... Rhd8
{[%clk 0:00:07.9]} 28. Rd7 {[%clk 0:00:26.7]} 28... Rxd7 {[%clk 0:00:08.1]} 29.
exd7+ {[%clk 0:00:25.7]} 29... Qf6 {[%clk 0:00:07.8]} 30. Rc1 {[%clk 0:00:19.5]}
30... Rd8 {[%clk 0:00:03.5]} 31. Qe4+ {[%clk 0:00:16.2]} 31... Qf5 {[%clk
0:00:04]} 32. Qxe7 {[%clk 0:00:15.6]} 32... Rxd7 {[%clk 0:00:03.3]} 33. Rc6+
{[%clk 0:00:15.6]} 33... Kh5 {[%clk 0:00:03.3]} 34. Qh4# {[%clk 0:00:15.3]} 1-0

[Event "Late-Titled-Tuesday-Blitz-September-12-2023"]
[Site "Chess.com"]
[Date "2023.09.12"]
[Round "8"]
[White "KorolDimitriy75"]
[Black "APOKALIPSA13"]
[Result "1-0"]
[WhiteElo "2368"]
[BlackElo "2253"]
[TimeControl "180+1"]
[EndTime "15:23:22 PDT"]
[Termination "KorolDimitriy75 won by checkmate"]

1. d4 {[%clk 0:03:00.9]} 1... e5 {[%clk 0:02:57.4]} 2. dxe5 {[%clk 0:03:00.3]}
2... Nc6 {[%clk 0:02:57.6]} 3. Nf3 {[%clk 0:02:56.6]} 3... Qe7 {[%clk
0:02:57.1]} 4. Nc3 {[%clk 0:02:56.6]} 4... Nxe5 {[%clk 0:02:57.1]} 5. Nd5 {[%clk
0:02:56.5]} 5... Nxf3+ {[%clk 0:02:56.8]} 6. gxf3 {[%clk 0:02:57.4]} 6... Qd8
{[%clk 0:02:57.2]} 7. Bf4 {[%clk 0:02:56.9]} 7... d6 {[%clk 0:02:57.7]} 8. Qd2
{[%clk 0:02:56.8]} 8... Be6 {[%clk 0:02:58]} 9. e4 {[%clk 0:02:55.9]} 9... c6
{[%clk 0:02:54.6]} 10. Nc3 {[%clk 0:02:54.6]} 10... Qb6 {[%clk 0:02:45.6]} 11.
O-O-O {[%clk 0:02:51.6]} 11... O-O-O {[%clk 0:02:44.8]} 12. Rg1 {[%clk
0:02:18.2]} 12... f6 {[%clk 0:02:36.6]} 13. Kb1 {[%clk 0:01:27.1]} 13... Nh6
{[%clk 0:02:21.5]} 14. Bd3 {[%clk 0:01:19.6]} 14... Nf7 {[%clk 0:02:18.9]} 15.
Be3 {[%clk 0:01:18.6]} 15... Qa5 {[%clk 0:02:17.5]} 16. f4 {[%clk 0:01:14.7]}
16... d5 {[%clk 0:01:48.9]} 17. f5 {[%clk 0:00:54.8]} 17... d4 {[%clk
0:01:48.2]} 18. fxe6 {[%clk 0:00:52.7]} 18... dxc3 {[%clk 0:01:48.2]} 19. Qxc3
{[%clk 0:00:47.9]} 19... Qxc3 {[%clk 0:01:41.4]} 20. bxc3 {[%clk 0:00:48.8]}
20... Ne5 {[%clk 0:01:38.3]} 21. Bxa7 {[%clk 0:00:34.9]} 21... c5 {[%clk
0:01:31.1]} 22. Bb5 {[%clk 0:00:24.4]} 22... Rxd1+ {[%clk 0:01:18.3]} 23. Rxd1
{[%clk 0:00:23.8]} 23... Kc7 {[%clk 0:01:18.6]} 24. f4 {[%clk 0:00:21.6]} 24...
Ng6 {[%clk 0:01:02.7]} 25. Rd7+ {[%clk 0:00:19.2]} 25... Kc8 {[%clk 0:01:01.6]}
26. Bb6 {[%clk 0:00:14.1]} 26... Be7 {[%clk 0:00:55.3]} 27. f5 {[%clk
0:00:14.4]} 27... Bd8 {[%clk 0:00:53.2]} 28. Bxd8 {[%clk 0:00:12.4]} 28... Rxd8
{[%clk 0:00:52.4]} 29. fxg6 {[%clk 0:00:09.4]} 29... hxg6 {[%clk 0:00:52.4]} 30.
e7 {[%clk 0:00:07.4]} 30... Re8 {[%clk 0:00:48.6]} 31. Rxb7 {[%clk 0:00:06.6]}
31... Rh8 {[%clk 0:00:43.8]} 32. Ra7 {[%clk 0:00:05.4]} 32... Kb8 {[%clk
0:00:43.8]} 33. Rd7 {[%clk 0:00:04.2]} 33... Kc8 {[%clk 0:00:44]} 34. a4 {[%clk
0:00:03]} 34... Kb8 {[%clk 0:00:28.2]} 35. a5 {[%clk 0:00:03.2]} 35... Rc8
{[%clk 0:00:23.1]} 36. Rd8 {[%clk 0:00:02.8]} 36... Kc7 {[%clk 0:00:23.3]} 37.
Rxc8+ {[%clk 0:00:02.9]} 37... Kb7 {[%clk 0:00:22.3]} 38. e8=Q {[%clk
0:00:03.8]} 38... Ka7 {[%clk 0:00:21.9]} 39. Qc6 {[%clk 0:00:04]} 39... f5
{[%clk 0:00:21.5]} 40. Ra8# {[%clk 0:00:04.2]} 1-0

[Event "Late-Titled-Tuesday-Blitz-September-12-2023"]
[Site "Chess.com"]
[Date "2023.09.12"]
[Round "8"]
[White "MathiasWomacka"]
[Black "chessdjw"]
[Result "1-0"]
[WhiteElo "2542"]
[BlackElo "2718"]
[TimeControl "180+1"]
[EndTime "15:23:30 PDT"]
[Termination "MathiasWomacka won on time"]

1. e4 {[%clk 0:03:00.9]} 1... e5 {[%clk 0:03:00]} 2. Nf3 {[%clk 0:03:00.5]} 2...
Nc6 {[%clk 0:03:00.6]} 3. Bb5 {[%clk 0:03:00.1]} 3... a6 {[%clk 0:03:00.6]} 4.
Bxc6 {[%clk 0:03:00.6]} 4... dxc6 {[%clk 0:03:00.5]} 5. O-O {[%clk 0:03:01.1]}
5... Qf6 {[%clk 0:03:01]} 6. d4 {[%clk 0:03:00.6]} 6... exd4 {[%clk 0:03:01.2]}
7. Bg5 {[%clk 0:03:00.9]} 7... Qd6 {[%clk 0:03:00.7]} 8. Nxd4 {[%clk 0:03:01.5]}
8... Bd7 {[%clk 0:02:57.8]} 9. Nc3 {[%clk 0:02:47.9]} 9... Ne7 {[%clk 0:02:55]}
10. Bh4 {[%clk 0:02:38.4]} 10... O-O-O {[%clk 0:02:42.5]} 11. Bg3 {[%clk
0:02:38.1]} 11... Qg6 {[%clk 0:02:42.7]} 12. Qd2 {[%clk 0:02:12]} 12... c5
{[%clk 0:01:23.5]} 13. Qf4 {[%clk 0:01:31]} 13... Qb6 {[%clk 0:01:11.3]} 14.
Nde2 {[%clk 0:01:20.9]} 14... h5 {[%clk 0:01:10.1]} 15. h4 {[%clk 0:01:14]}
15... f6 {[%clk 0:00:59.4]} 16. Rad1 {[%clk 0:00:52]} 16... g5 {[%clk
0:00:58.9]} 17. hxg5 {[%clk 0:00:50.2]} 17... h4 {[%clk 0:00:58]} 18. Bh2 {[%clk
0:00:38.3]} 18... fxg5 {[%clk 0:00:57.4]} 19. Qxg5 {[%clk 0:00:35.2]} 19... h3
{[%clk 0:00:42.2]} 20. Nf4 {[%clk 0:00:19]} 20... hxg2 {[%clk 0:00:27.1]} 21.
Rfe1 {[%clk 0:00:19]} 21... Qh6 {[%clk 0:00:05.9]} 22. Qxh6 {[%clk 0:00:18.3]}
22... Bxh6 {[%clk 0:00:06.8]} 23. Nfd5 {[%clk 0:00:17.8]} 23... Nxd5 {[%clk
0:00:06.5]} 24. Nxd5 {[%clk 0:00:18.5]} 24... Bc6 {[%clk 0:00:01.8]} 25. Ne7+
{[%clk 0:00:18.2]} 25... Kb8 {[%clk 0:00:02.3]} 26. Nxc6+ {[%clk 0:00:18.2]}
26... bxc6 {[%clk 0:00:03.2]} 27. Rxd8+ {[%clk 0:00:17.1]} 27... Rxd8 {[%clk
0:00:04.1]} 28. Kxg2 {[%clk 0:00:17]} 28... Rd2 {[%clk 0:00:04.6]} 29. e5 {[%clk
0:00:16.6]} 29... Bf8 {[%clk 0:00:02.8]} 30. e6 {[%clk 0:00:14]} 30... Be7
{[%clk 0:00:03.4]} 31. Be5 {[%clk 0:00:12.7]} 31... Rxc2 {[%clk 0:00:02.7]} 32.
Kg3 {[%clk 0:00:13.1]} 32... Kb7 {[%clk 0:00:02]} 33. f4 {[%clk 0:00:13.1]}
33... Rd2 {[%clk 0:00:01.6]} 34. f5 {[%clk 0:00:12.8]} 34... Rd5 {[%clk
0:00:02]} 35. Kf4 {[%clk 0:00:10.5]} 35... c4 {[%clk 0:00:01.9]} 36. f6 {[%clk
0:00:10.4]} 36... Bc5 {[%clk 0:00:01.7]} 37. e7 {[%clk 0:00:09.3]} 1-0

[Event "Late-Titled-Tuesday-Blitz-September-12-2023"]
[Site "Chess.com"]
[Date "2023.09.12"]
[Round "8"]
[White "MusicCityMaster"]
[Black "ChEsper99"]
[Result "1-0"]
[WhiteElo "2365"]
[BlackElo "2232"]
[TimeControl "180+1"]
[EndTime "15:23:31 PDT"]
[Termination "MusicCityMaster won on time"]

1. e4 {[%clk 0:03:00.9]} 1... c5 {[%clk 0:02:58]} 2. Nf3 {[%clk 0:03:00.8]} 2...
d6 {[%clk 0:02:57]} 3. d4 {[%clk 0:03:01]} 3... cxd4 {[%clk 0:02:57.9]} 4. Nxd4
{[%clk 0:03:01.4]} 4... Nf6 {[%clk 0:02:58.6]} 5. Nc3 {[%clk 0:03:01.9]} 5... a6
{[%clk 0:02:59.2]} 6. Bc4 {[%clk 0:03:02.1]} 6... e6 {[%clk 0:02:59.3]} 7. Bb3
{[%clk 0:03:02.8]} 7... Be7 {[%clk 0:02:56.5]} 8. Qe2 {[%clk 0:03:03.1]} 8...
O-O {[%clk 0:02:56.7]} 9. g4 {[%clk 0:03:03.1]} 9... Nfd7 {[%clk 0:02:45.1]} 10.
Be3 {[%clk 0:03:00.2]} 10... Nc5 {[%clk 0:02:42.2]} 11. O-O-O {[%clk 0:02:59.9]}
11... Nxb3+ {[%clk 0:02:41.7]} 12. axb3 {[%clk 0:02:59.6]} 12... Qc7 {[%clk
0:02:37]} 13. Kb1 {[%clk 0:02:59.2]} 13... b5 {[%clk 0:02:36.4]} 14. Nf5 {[%clk
0:02:39.2]} 14... exf5 {[%clk 0:02:12.6]} 15. Nd5 {[%clk 0:02:39.2]} 15... Qb7
{[%clk 0:02:04.2]} 16. exf5 {[%clk 0:02:28.2]} 16... Re8 {[%clk 0:01:50.3]} 17.
Qf3 {[%clk 0:02:08.9]} 17... Nd7 {[%clk 0:01:45.4]} 18. g5 {[%clk 0:01:58]}
18... Bf8 {[%clk 0:01:32.8]} 19. Rhg1 {[%clk 0:01:51.6]} 19... Ne5 {[%clk
0:01:32.3]} 20. Qh3 {[%clk 0:01:42.3]} 20... Qd7 {[%clk 0:00:56.3]} 21. Nb6
{[%clk 0:01:19.5]} 21... Qc6 {[%clk 0:00:35.3]} 22. Nd5 {[%clk 0:01:16.8]} 22...
Qd7 {[%clk 0:00:23.6]} 23. Nb6 {[%clk 0:01:09.4]} 23... Qc6 {[%clk 0:00:15.4]}
24. Nxa8 {[%clk 0:01:09.7]} 24... Qxa8 {[%clk 0:00:14.8]} 25. Rg3 {[%clk
0:01:10.4]} 25... Qe4 {[%clk 0:00:11.7]} 26. f3 {[%clk 0:00:53.9]} 26... Qxf5
{[%clk 0:00:11.6]} 27. Qxf5 {[%clk 0:00:52.9]} 27... Bxf5 {[%clk 0:00:12.1]} 28.
f4 {[%clk 0:00:53.3]} 28... Nd7 {[%clk 0:00:09.6]} 29. Bd4 {[%clk 0:00:50.1]}
29... Be7 {[%clk 0:00:08.5]} 30. h4 {[%clk 0:00:48.6]} 30... Kf8 {[%clk
0:00:06.8]} 31. h5 {[%clk 0:00:47.9]} 31... f6 {[%clk 0:00:07.3]} 32. h6 {[%clk
0:00:48.1]} 32... g6 {[%clk 0:00:06.5]} 33. gxf6 {[%clk 0:00:40.5]} 33... Bxf6
{[%clk 0:00:07.4]} 34. Rc3 {[%clk 0:00:32.8]} 34... Bxd4 {[%clk 0:00:07]} 35.
Rxd4 {[%clk 0:00:33.7]} 35... Re6 {[%clk 0:00:06.1]} 36. Rc8+ {[%clk 0:00:31.7]}
36... Ke7 {[%clk 0:00:06.2]} 37. Rh8 {[%clk 0:00:31.3]} 37... Nf8 {[%clk
0:00:06.4]} 38. Rg8 {[%clk 0:00:26.3]} 38... Rf6 {[%clk 0:00:05.1]} 39. Rg7+
{[%clk 0:00:25.8]} 39... Rf7 {[%clk 0:00:04.9]} 40. Rxd6 {[%clk 0:00:24.2]}
40... Kxd6 {[%clk 0:00:02.8]} 41. Rxf7 {[%clk 0:00:24.4]} 41... Ne6 {[%clk
0:00:02.4]} 42. Rxh7 {[%clk 0:00:24.1]} 42... Nxf4 {[%clk 0:00:02.5]} 43. Rd7+
{[%clk 0:00:20.5]} 43... Kxd7 {[%clk 0:00:01.2]} 44. h7 {[%clk 0:00:21.4]} 44...
Ke6 {[%clk 0:00:01.5]} 45. h8=Q {[%clk 0:00:21.7]} 1-0

[Event "Late-Titled-Tuesday-Blitz-September-12-2023"]
[Site "Chess.com"]
[Date "2023.09.12"]
[Round "8"]
[White "traack"]
[Black "Bodhanas"]
[Result "1-0"]
[WhiteElo "2357"]
[BlackElo "1879"]
[TimeControl "180+1"]
[EndTime "15:23:32 PDT"]
[Termination "traack won on time"]

1. e4 {[%clk 0:03:00.9]} 1... b6 {[%clk 0:02:55.8]} 2. d4 {[%clk 0:03:00.4]}
2... Bb7 {[%clk 0:02:52.1]} 3. Nc3 {[%clk 0:03:01.3]} 3... e6 {[%clk 0:02:50.2]}
4. f3 {[%clk 0:03:01.2]} 4... Bb4 {[%clk 0:02:49.2]} 5. Be3 {[%clk 0:03:01.5]}
5... Ne7 {[%clk 0:02:48]} 6. Qd2 {[%clk 0:03:01.4]} 6... d5 {[%clk 0:02:46.1]}
7. e5 {[%clk 0:03:01.6]} 7... Nd7 {[%clk 0:02:44.6]} 8. a3 {[%clk 0:03:01]} 8...
Bxc3 {[%clk 0:02:44]} 9. bxc3 {[%clk 0:03:01.2]} 9... Rc8 {[%clk 0:02:41.7]} 10.
f4 {[%clk 0:02:46.8]} 10... c5 {[%clk 0:02:37.8]} 11. Nf3 {[%clk 0:02:47.3]}
11... Nf5 {[%clk 0:02:29]} 12. Bd3 {[%clk 0:02:41.4]} 12... Nxe3 {[%clk
0:02:27.6]} 13. Qxe3 {[%clk 0:02:41.3]} 13... Qe7 {[%clk 0:02:22]} 14. O-O
{[%clk 0:02:40.5]} 14... O-O {[%clk 0:02:20.2]} 15. Rae1 {[%clk 0:02:40.8]}
15... cxd4 {[%clk 0:02:17.8]} 16. cxd4 {[%clk 0:02:40.9]} 16... Rfe8 {[%clk
0:02:02.2]} 17. f5 {[%clk 0:02:29.3]} 17... exf5 {[%clk 0:01:46.3]} 18. Bxf5
{[%clk 0:02:28.5]} 18... Rc7 {[%clk 0:01:37]} 19. Ng5 {[%clk 0:01:43.9]} 19...
Nf8 {[%clk 0:01:24.8]} 20. Nxf7 {[%clk 0:01:23.8]} 20... Bc8 {[%clk 0:00:41.1]}
21. Bxc8 {[%clk 0:01:16.4]} 21... Rexc8 {[%clk 0:00:39.9]} 22. Nd6 {[%clk
0:01:11.2]} 22... Rc3 {[%clk 0:00:38.7]} 23. Nxc8 {[%clk 0:01:09.4]} 23... Rxc8
{[%clk 0:00:35.2]} 24. Qf3 {[%clk 0:01:07.6]} 24... Qd7 {[%clk 0:00:29.2]} 25.
Qb3 {[%clk 0:00:57]} 25... Ne6 {[%clk 0:00:27.1]} 26. c3 {[%clk 0:00:54.9]}
26... Qc6 {[%clk 0:00:23.9]} 27. Rf3 {[%clk 0:00:52.8]} 27... Qc4 {[%clk
0:00:19.9]} 28. Qb4 {[%clk 0:00:47.9]} 28... Qxb4 {[%clk 0:00:18.8]} 29. axb4
{[%clk 0:00:46.7]} 29... h6 {[%clk 0:00:18.4]} 30. Ra1 {[%clk 0:00:46.7]} 30...
Rc7 {[%clk 0:00:18.2]} 31. Kf1 {[%clk 0:00:47.1]} 31... Ng5 {[%clk 0:00:17.9]}
32. Re3 {[%clk 0:00:45.6]} 32... Ne4 {[%clk 0:00:17.6]} 33. Ra3 {[%clk
0:00:44.2]} 33... Kf7 {[%clk 0:00:16.7]} 34. Ke2 {[%clk 0:00:41.7]} 34... Ke6
{[%clk 0:00:16.5]} 35. b5 {[%clk 0:00:39.8]} 35... h5 {[%clk 0:00:12.7]} 36. g3
{[%clk 0:00:39.6]} 36... g6 {[%clk 0:00:12]} 37. h4 {[%clk 0:00:37.9]} 37... Kf5
{[%clk 0:00:10.1]} 38. Rf3+ {[%clk 0:00:35.3]} 38... Kg4 {[%clk 0:00:05.3]} 39.
Re3 {[%clk 0:00:30.3]} 39... Nxg3+ {[%clk 0:00:04.3]} 40. Rxg3+ {[%clk
0:00:31.2]} 40... Kxg3 {[%clk 0:00:03.9]} 41. c4+ {[%clk 0:00:32.1]} 41... Kf4
{[%clk 0:00:03.7]} 42. cxd5 {[%clk 0:00:33]} 42... Ke4 {[%clk 0:00:03.6]} 43. d6
{[%clk 0:00:33.3]} 43... Rd7 {[%clk 0:00:03.4]} 44. Re3+ {[%clk 0:00:28.5]}
44... Kxd4 {[%clk 0:00:02.8]} 45. e6 {[%clk 0:00:29.4]} 45... Rxd6 {[%clk
0:00:02.6]} 46. e7 {[%clk 0:00:29.9]} 1-0

[Event "Late-Titled-Tuesday-Blitz-September-12-2023"]
[Site "Chess.com"]
[Date "2023.09.12"]
[Round "8"]
[White "The_Straightforward_Rook"]
[Black "FredyMatsuura"]
[Result "0-1"]
[WhiteElo "2529"]
[BlackElo "2365"]
[TimeControl "180+1"]
[EndTime "15:23:33 PDT"]
[Termination "FredyMatsuura won by resignation"]

1. d4 {[%clk 0:02:57.5]} 1... e6 {[%clk 0:02:59.6]} 2. c4 {[%clk 0:02:55.6]}
2... f5 {[%clk 0:02:58.8]} 3. Nc3 {[%clk 0:02:54.9]} 3... Nf6 {[%clk 0:02:58.7]}
4. e3 {[%clk 0:02:54.6]} 4... b6 {[%clk 0:02:58.1]} 5. Bd3 {[%clk 0:02:52.9]}
5... Bb7 {[%clk 0:02:58.5]} 6. f3 {[%clk 0:02:53.1]} 6... Be7 {[%clk 0:02:55.8]}
7. Nh3 {[%clk 0:02:52.1]} 7... O-O {[%clk 0:02:55.3]} 8. O-O {[%clk 0:02:52]}
8... Qe8 {[%clk 0:02:42.9]} 9. e4 {[%clk 0:02:46.2]} 9... Nh5 {[%clk 0:02:14.8]}
10. exf5 {[%clk 0:02:34.7]} 10... exf5 {[%clk 0:02:14.8]} 11. Re1 {[%clk
0:02:30.3]} 11... Qf7 {[%clk 0:02:04.1]} 12. d5 {[%clk 0:02:20.7]} 12... Na6
{[%clk 0:01:50.9]} 13. Be3 {[%clk 0:02:17.8]} 13... Nc5 {[%clk 0:01:37.5]} 14.
Bc2 {[%clk 0:02:16.4]} 14... a5 {[%clk 0:01:36.8]} 15. Kh1 {[%clk 0:02:12.5]}
15... Rae8 {[%clk 0:01:24.6]} 16. Qd2 {[%clk 0:02:07.4]} 16... f4 {[%clk
0:01:15.6]} 17. Bf2 {[%clk 0:02:00]} 17... d6 {[%clk 0:01:10.4]} 18. a3 {[%clk
0:01:59]} 18... Bc8 {[%clk 0:01:07.2]} 19. Ng1 {[%clk 0:01:52.3]} 19... Nd7
{[%clk 0:00:55.7]} 20. Ne4 {[%clk 0:01:46.7]} 20... Ne5 {[%clk 0:00:54.3]} 21.
Bd4 {[%clk 0:01:36.5]} 21... Bh4 {[%clk 0:00:49]} 22. Nf2 {[%clk 0:01:25.2]}
22... Bf5 {[%clk 0:00:42.4]} 23. Bxe5 {[%clk 0:01:23.9]} 23... dxe5 {[%clk
0:00:38.2]} 24. Bxf5 {[%clk 0:01:19.8]} 24... Qxf5 {[%clk 0:00:37.7]} 25. Ngh3
{[%clk 0:01:16]} 25... Nf6 {[%clk 0:00:33.7]} 26. Re2 {[%clk 0:01:13.6]} 26...
g5 {[%clk 0:00:31.3]} 27. Ne4 {[%clk 0:01:03]} 27... g4 {[%clk 0:00:28.6]} 28.
Nhf2 {[%clk 0:01:00.1]} 28... gxf3 {[%clk 0:00:21.3]} 29. gxf3 {[%clk
0:01:00.1]} 29... Qh5 {[%clk 0:00:21.1]} 30. Rg1+ {[%clk 0:00:58.3]} 30... Kh8
{[%clk 0:00:21.3]} 31. Nxf6 {[%clk 0:00:53.4]} 31... Qxf3+ {[%clk 0:00:20]} 32.
Rg2 {[%clk 0:00:52.7]} 32... Rxf6 {[%clk 0:00:20.1]} 33. Qd3 {[%clk 0:00:34.2]}
33... Qxd3 {[%clk 0:00:15.5]} 34. Nxd3 {[%clk 0:00:35.1]} 34... f3 {[%clk
0:00:16]} 35. Rxe5 {[%clk 0:00:35.7]} 35... fxg2+ {[%clk 0:00:15.9]} 36. Kxg2
{[%clk 0:00:36.6]} 36... Rxe5 {[%clk 0:00:15.9]} 37. Nxe5 {[%clk 0:00:37.5]}
37... Rf4 {[%clk 0:00:15.6]} 38. b4 {[%clk 0:00:34.5]} 38... Kg7 {[%clk
0:00:15.4]} 39. c5 {[%clk 0:00:34.4]} 39... axb4 {[%clk 0:00:15.6]} 40. axb4
{[%clk 0:00:34.2]} 40... Rxb4 {[%clk 0:00:15.5]} 41. d6 {[%clk 0:00:32]} 41...
cxd6 {[%clk 0:00:14.8]} 42. c6 {[%clk 0:00:32.2]} 42... Rb2+ {[%clk 0:00:14.1]}
43. Kh3 {[%clk 0:00:31.7]} 43... Bf6 {[%clk 0:00:13.4]} 44. Nc4 {[%clk
0:00:28.2]} 44... Rc2 {[%clk 0:00:11.4]} 45. Nxd6 {[%clk 0:00:27.4]} 45... Rxc6
{[%clk 0:00:11.2]} 46. Nf5+ {[%clk 0:00:28.3]} 46... Kg6 {[%clk 0:00:10.7]} 47.
Kg4 {[%clk 0:00:28.9]} 47... Rc4+ {[%clk 0:00:10.5]} 48. Kf3 {[%clk 0:00:29.8]}
48... Kxf5 {[%clk 0:00:10.9]} 0-1